bitfinex/quotes_ETHUSD_20220201
["timestamp","ask_amount","ask_price","bid_price","bid_amount"]
[1643742004726,2.37280872,2770.3,2768.9,3.43689258]
[1643742004727,1.82297475,2770.2,2768.9,3.43689258]
[1643742004927,0.66943397,2770.0,2769.6,0.07330315]
[1643742005129,0.1804,2769.9,2768.9,2.59141866]
[1643742005330,1.52297475,2769.8,2768.9,2.59141866]
[1643742005727,1.82297475,2769.8,2768.9,0.39882608]
[1643742005931,1.52297475,2769.7,2769.0,0.18056]
[1643742006127,1.52297475,2769.6,2769.4,0.43979006]
[1643742006329,0.9028107,2769.9,2769.4,0.43979006]
[1643742006528,0.9028107,2769.9,2769.4,0.51309321]
[1643742006529,1.52306923,2769.8,2769.4,0.51309321]
[1643742006728,1.52306923,2769.8,2769.4,0.43979006]
[1643742006927,1.52306923,2769.8,2769.2,2.41279093]
[1643742007328,1.52306923,2769.8,2769.2,2.23223093]
[1643742007586,0.1804,2770.1,2769.6,0.78867961]
[1643742007788,1.52291275,2770.0,2769.7,2.82469592]
[1643742007987,1.52291275,2770.0,2769.9,0.07330315]
[1643742008184,0.1804,2770.1,2769.9,0.07330315]
[1643742008582,0.1804,2770.1,2769.7,2.41336759]
[1643742008788,1.52292963,2770.0,2769.5,0.18056]
[1643742008988,2.2098727,2770.7,2769.3,0.36096]
[1643742008989,1.52292963,2769.9,2769.3,0.36096]
[1643742009186,1.52292963,2769.8,2769.3,0.1804]
[1643742009386,0.1804,2769.7,2769.3,0.1804]
[1643742009587,1.52292963,2769.6,2769.3,0.1804]
[1643742009786,1.52292963,2769.5,2769.3,0.1804]
[1643742010187,2.42571393,2769.9,2769.3,0.1804]
[1643742010386,1.70360858,2769.8,2769.3,0.1804]
[1643742010592,1.52320858,2769.7,2769.3,0.1804]
[1643742011233,1.52320858,2769.7,2769.5,0.07330315]
[1643742011452,1.9861043,2769.9,2769.3,0.1804]
[1643742011453,1.52320858,2769.8,2769.3,0.1804]
[1643742011637,1.82320858,2769.7,2769.3,0.1804]
[1643742011835,2.42610528,2769.6,2769.3,0.1804]
[1643742012035,1.52320858,2769.5,2769.3,0.1804]
[1643742012234,1.82320858,2769.5,2769.3,0.1804]
[1643742012437,1.52320858,2769.4,2769.3,0.1804]
[1643742012639,1.52320858,2769.4,2769.3,0.25370315]
[1643742014043,2.95,2769.4,2769.3,0.25370315]
[1643742014245,4.77333452,2769.4,2769.3,0.07330315]
[1643742014446,6.65,2769.3,2768.1,2.37309258]
[1643742014647,5.31659252,2769.2,2767.9,2.19259258]
[1643742014843,5.31659252,2769.2,2768.5,0.144554]
[1643742014844,1.52333452,2769.1,2768.5,0.144554]
[1643742015096,0.18463057,2769.0,2767.9,2.19259258]
[1643742015288,1.52333452,2768.9,2767.9,2.19259258]
[1643742015690,1.82333452,2768.9,2767.9,2.19259258]
[1643742015892,0.3,2768.9,2768.3,0.70341785]
[1643742016095,0.903235,2768.8,2768.0,0.33877095]
[1643742016291,0.903235,2768.8,2768.1,0.18056]
[1643742016490,0.903235,2768.8,2768.1,2.37315258]
[1643742016792,0.1806,2769.1,2768.5,0.39036826]
[1643742016992,0.1804,2769.3,2768.6,2.36643891]
[1643742017197,1.52338986,2769.2,2768.6,3.26416282]
[1643742017395,0.1804,2769.6,2769.1,0.7812669]
[1643742017600,0.90305,2769.9,2769.1,0.7812669]
[1643742017601,0.1804,2769.9,2769.5,0.40947391]
[1643742017802,0.66288431,2769.0,2768.7,0.01689866]
[1643742017999,0.66288431,2769.0,2768.9,21.04]
[1643742018199,0.66288431,2769.0,2768.8,0.1804]
[1643742018833,3.04242655,2770.2,2769.0,4.5]
[1643742019131,1.52316179,2770.1,2769.0,4.5]
[1643742019329,0.1804,2770.0,2769.4,0.42149989]
[1643742019531,1.52316179,2769.9,2769.8,1.78013682]
[1643742019933,1.52316179,2770.0,2769.8,1.78013682]
[1643742020131,1.52316179,2769.9,2769.8,1.78013682]
[1643742020332,1.52316179,2770.1,2769.8,1.78013682]
[1643742020531,1.52316179,2770.0,2769.8,1.78013682]
[1643742020734,1.52316179,2769.9,2769.8,1.78013682]
[1643742020937,1.52316179,2770.0,2769.8,1.78013682]
[1643742021734,1.52316179,2770.0,2769.9,0.35373779]
[1643742021940,1.52316179,2770.0,2769.8,1.78013682]
[1643742022140,1.52316179,2770.3,2769.8,1.78013682]
[1643742022339,1.52316179,2769.9,2769.8,1.78013682]
[1643742022585,1.52316179,2770.2,2769.8,1.78013682]
[1643742022785,1.52316179,2769.9,2769.8,1.78013682]
[1643742022986,1.52316179,2770.1,2769.8,1.78013682]
[1643742023184,1.75240127,2770.6,2769.8,1.78013682]
[1643742023185,1.52316179,2770.0,2769.8,1.78013682]
[1643742023386,1.52316179,2769.9,2769.8,1.78013682]
[1643742023589,1.52316179,2770.5,2769.8,1.80220682]
[1643742023988,2.19259576,2770.5,2770.2,0.32374262]
[1643742024190,1.52316179,2770.4,2769.8,1.78013682]
[1643742024389,1.52316179,2770.3,2769.8,1.78013682]
[1643742024591,1.52316179,2770.2,2769.8,21.04]
[1643742024790,1.52316179,2770.6,2770.2,1.78013682]
[1643742024990,1.52276968,2770.5,2770.2,1.78013682]
[1643742025194,1.52276968,2770.4,2770.2,1.78013682]
[1643742025391,1.52276968,2770.6,2770.2,1.78013682]
[1643742025591,1.1269322,2770.7,2770.2,1.78013682]
[1643742025592,1.52276968,2770.5,2770.2,1.78013682]
[1643742025794,1.52276968,2770.4,2770.2,1.78013682]
[1643742025994,2.19220365,2770.4,2770.2,1.78013682]
[1643742026639,6.49220365,2770.3,2770.2,1.78013682]
[1643742026841,6.79220365,2770.3,2770.2,1.78013682]
[1643742027246,6.12276968,2770.3,2770.2,1.78013682]
[1643742027846,6.79220365,2770.3,2770.2,1.78013682]
[1643742028244,2.49220365,2770.3,2770.2,1.78013682]
[1643742028446,5.04220365,2770.3,2770.2,1.78013682]
[1643742028649,2.49220365,2770.3,2770.2,1.78013682]
[1643742028855,1.52276968,2770.3,2770.2,1.78013682]
[1643742029247,0.66943397,2770.6,2770.2,1.78013682]
[1643742029248,2.19220365,2770.6,2770.2,1.78013682]
[1643742029449,0.66943397,2770.5,2770.2,1.78013682]
[1643742029747,1.52276968,2770.6,2770.2,1.78013682]
[1643742029748,1.52276968,2770.4,2770.2,1.78013682]
[1643742029990,0.66943397,2770.6,2770.1,0.8109418]
[1643742029991,1.52285147,2770.3,2770.1,0.8109418]
[1643742030191,0.66943397,2770.6,2770.4,1.78013682]
[1643742030390,2.19223448,2770.5,2770.4,1.78013682]
[1643742030791,6.32280051,2770.5,2770.4,1.78013682]
[1643742030991,6.62280051,2770.5,2770.4,1.78013682]
[1643742031191,6.32280051,2770.5,2770.4,1.78013682]
[1643742031594,6.62280051,2770.5,2770.4,1.78013682]
[1643742031794,4.60271,2770.4,2770.0,0.144467]
[1643742031997,0.67373826,2770.1,2770.0,0.144467]
[1643742032195,1.52280051,2770.1,2770.0,0.144467]
[1643742032395,2.60151819,2770.1,2770.0,0.144467]
[1643742032994,1.70320051,2770.1,2770.0,0.144467]
[1643742033851,4.37288079,2770.1,2769.0,0.1804]
[1643742034051,0.67324227,2769.5,2767.5,0.02207]
[1643742034260,0.67324227,2769.5,2767.2,1.25197]
[1643742034261,0.67324227,2769.1,2767.2,1.25197]
[1643742034444,0.67324227,2769.1,2767.4,0.25]
[1643742034445,0.68584575,2768.9,2767.4,0.25]
[1643742034645,0.67324227,2768.6,2767.0,3.7053]
[1643742034940,1.26462227,2768.5,2766.5,2.4128]
[1643742035141,1.26462227,2768.5,2766.6,0.1806]
[1643742035142,0.9036354,2767.5,2766.6,0.1806]
[1643742035340,1.52901783,2767.4,2766.4,0.1806]
[1643742035541,1.52901783,2767.4,2766.2,0.00169736]
[1643742035542,2.11418051,2767.3,2766.2,0.00169736]
[1643742035745,0.1807,2767.2,2766.1,1.63857]
[1643742035941,1.95580051,2767.1,2766.2,0.5]
[1643742036144,0.90399,2766.9,2766.5,0.75244143]
[1643742036344,0.18079,2766.9,2766.5,0.75244143]
[1643742036742,0.18079,2766.9,2766.4,0.01241154]
[1643742036941,9e-05,2766.9,2766.4,0.01241154]
[1643742037607,9e-05,2766.9,2766.4,0.03448154]
[1643742037804,9e-05,2766.9,2766.4,0.01241154]
[1643742038703,9e-05,2766.9,2766.5,0.90432233]
[1643742038906,9e-05,2766.9,2766.6,21.04]
[1643742039107,9e-05,2766.9,2766.8,0.02207]
[1643742039506,2.35264112,2768.2,2766.6,21.06207]
[1643742039507,1.52188488,2768.1,2766.6,21.06207]
[1643742039808,0.90366,2767.8,2766.4,0.01241154]
[1643742040012,0.9036672,2767.5,2766.4,0.01241154]
[1643742040204,0.9036672,2767.5,2766.6,0.83318478]
[1643742040403,0.9036672,2767.5,2766.4,0.01241154]
[1643742040606,0.3,2767.4,2766.3,0.36165765]
[1643742040806,0.3,2767.4,2766.2,0.5]
[1643742041008,3.6149994,2767.2,2766.2,0.5]
[1643742041241,3.9149994,2767.2,2766.3,0.1807]
[1643742041642,1.0846,2767.1,2766.3,0.1807]
[1643742041838,1.82575786,2767.1,2766.3,0.1807]
[1643742042037,2.71217,2766.9,2766.3,0.1807]
[1643742042243,0.90404,2766.6,2766.3,0.1807]
[1643742042541,3.7970115,2766.5,2766.3,0.1807]
[1643742042740,3.9163115,2766.5,2766.3,0.1807]
[1643742042942,3.6163115,2766.5,2766.3,0.1807]
[1643742044144,4.5203873,2766.5,2766.3,0.1807]
[1643742044747,0.90407,2766.6,2766.3,0.1807]
[1643742045012,1.80759,2767.1,2766.0,0.02207]
[1643742045197,1.80759,2767.1,2766.1,0.1807]
[1643742045395,2.7113729,2767.1,2766.1,0.1807]
[1643742045596,1.8075729,2767.1,2766.2,0.02207]
[1643742045797,1.8075729,2767.1,2766.0,0.20277]
[1643742045997,1.8075729,2767.1,2766.1,0.69327891]
[1643742046200,2.7113829,2767.1,2766.1,0.69327891]
[1643742046401,2.7113829,2767.1,2766.3,0.43022786]
[1643742046602,2.7113829,2767.1,2766.2,0.02207]
[1643742047001,2.7113829,2767.1,2765.9,0.1807]
[1643742047304,0.4807,2767.0,2765.9,0.1807]
[1643742047503,0.3,2767.0,2765.9,0.3395861]
[1643742047702,0.4807,2767.0,2765.9,0.3395861]
[1643742048102,0.90387,2766.8,2766.2,0.73946138]
[1643742048305,0.90387,2766.8,2765.8,0.1807]
[1643742048604,1.2039159,2766.7,2765.7,0.20277]
[1643742048837,1.3846159,2766.7,2765.7,0.02207]
[1643742049042,0.4807,2766.7,2765.7,0.02207]
[1643742049236,0.3,2766.7,2765.9,0.85513897]
[1643742049440,0.90386,2766.6,2766.3,0.33392684]
[1643742049638,0.90386,2766.6,2765.9,0.85513897]
[1643742049838,1.20386,2766.6,2765.9,0.85513897]
[1643742050648,0.90386,2766.6,2766.4,0.94082425]
[1643742050848,0.1807,2766.9,2766.5,2.05822082]
[1643742051051,8.31261999,2767.8,2766.5,2.05822082]
[1643742051052,0.1807,2767.2,2766.5,2.05822082]
[1643742051247,0.1806,2767.7,2767.0,0.9186607]
[1643742052051,0.23059999,2767.8,2767.0,0.9186607]
[1643742052250,0.1806,2767.8,2767.5,0.83636496]
[1643742052495,0.1806,2768.2,2767.5,0.76330807]
[1643742052704,0.1806,2768.5,2768.0,0.44749881]
[1643742052904,2.33087881,2769.1,2768.0,0.44749881]
[1643742052905,0.1806,2768.6,2768.0,0.44749881]
[1643742053105,0.1806,2769.0,2768.0,0.44749881]
[1643742053502,3.0625,2769.2,2768.1,2.10232512]
[1643742053503,0.1806,2769.1,2768.1,2.10232512]
[1643742053703,0.1806,2769.1,2768.2,0.73785502]
[1643742053704,0.33898,2769.1,2768.2,0.73785502]
[1643742053902,0.90327,2768.8,2768.2,0.73785502]
[1643742054102,0.1806,2768.7,2768.0,0.44749881]
[1643742054708,0.4806,2768.7,2768.0,0.44749881]
[1643742055303,0.4806,2768.7,2767.5,2.54285135]
[1643742055507,0.90344,2768.4,2767.5,0.1806]
[1643742055706,0.4806,2768.3,2767.5,0.1806]
[1643742055905,0.1806,2768.3,2767.5,0.1806]
[1643742056339,0.1806,2768.3,2768.1,0.43052469]
[1643742056539,0.1806,2768.6,2768.2,0.78263801]
[1643742056737,0.95326999,2768.8,2768.1,0.43052469]
[1643742056738,0.1806,2768.7,2768.1,0.43052469]
[1643742057139,0.4806,2768.7,2768.1,0.43052469]
[1643742057740,1.3839064,2768.7,2767.5,2.97384682]
[1643742058138,0.90333,2768.5,2767.5,2.97384682]
[1643742058341,0.90333,2768.5,2767.5,0.1806]
[1643742058639,1.20333,2768.5,2767.5,0.1806]
[1643742058840,1.20333,2768.5,2768.2,0.36127393]
[1643742059041,1.20333,2768.5,2767.5,0.1806]
[1643742059444,0.90342,2768.3,2767.5,0.1806]
[1643742059743,2.28241897,2768.2,2767.5,0.1806]
[1643742059985,1.52403897,2768.1,2767.5,0.1806]
[1643742060189,0.1806,2768.0,2767.7,0.35112898]
[1643742060385,0.90342,2768.3,2767.7,0.17052899]
[1643742060386,0.1806,2768.2,2767.7,0.17052899]
[1643742060786,1.08402,2768.3,2767.7,0.17052899]
[1643742060983,0.90342,2768.3,2767.2,2.07956246]
[1643742061188,0.1806,2768.2,2767.1,0.97466233]
[1643742061388,0.4806,2768.2,2767.1,0.79406233]
[1643742061583,0.7806,2768.2,2767.1,0.79406233]
[1643742061786,0.22889377,2768.5,2767.6,6.65]
[1643742061988,0.66578521,2769.6,2768.4,0.01299549]
[1643742062187,1.52356724,2769.5,2768.5,0.5716199]
[1643742062387,3.18029541,2770.4,2768.5,0.5716199]
[1643742062388,1.80576,2770.4,2769.3,3.26682181]
[1643742062594,1.80576,2770.4,2770.2,0.32656211]
[1643742062595,1.52324112,2770.3,2770.2,0.32656211]
[1643742062788,0.00286162,2770.4,2770.2,0.32656211]
[1643742063191,0.03552,2770.5,2770.2,0.32656211]
[1643742063391,1.1269322,2770.7,2770.3,0.00403501]
[1643742063589,1.1269322,2770.7,2770.4,0.01232973]
[1643742064040,1.52289362,2770.6,2770.3,0.00403501]
[1643742064435,1.52289362,2770.6,2769.6,0.1804]
[1643742064436,1.1269322,2770.7,2769.7,0.18053]
[1643742064735,1.1269322,2770.7,2769.8,0.42117166]
[1643742064935,1.1269322,2770.7,2769.9,0.18053]
[1643742065138,1.1269322,2770.7,2769.9,21.22053]
[1643742065336,1.1269322,2770.7,2770.6,0.84775028]
[1643742065536,1.1269322,2770.7,2770.6,1.18133979]
[1643742065739,1.1269322,2770.7,2770.6,1.36186979]
[1643742065938,1.0769322,2770.7,2770.6,1.18133979]
[1643742066337,1.0769322,2770.7,2770.6,0.33358951]
[1643742067488,1.0769322,2770.7,2770.6,1.17607632]
[1643742067694,1.0269322,2770.7,2770.6,1.17607632]
[1643742068290,1.0269322,2770.7,2770.6,1.35660632]
[1643742069092,0.1804,2771.7,2771.5,0.43958702]
[1643742069294,0.1804,2771.7,2771.1,0.18053]
[1643742069295,0.38129052,2771.2,2771.1,0.18053]
[1643742069492,0.38129052,2771.2,2771.1,0.39037793]
[1643742069892,0.38129052,2771.2,2771.1,0.57090793]
[1643742070094,0.1804,2772.1,2771.9,0.42249211]
[1643742070298,1.52218934,2772.0,2771.9,0.42249211]
[1643742070493,1.52218934,2772.0,2771.7,0.433]
[1643742070694,1.52218934,2771.9,2771.7,0.433]
[1643742070895,0.1802,2772.5,2771.7,0.433]
[1643742071096,0.6657541,2772.7,2772.0,0.84598081]
[1643742071097,1.5219167,2772.4,2772.0,0.84598081]
[1643742071332,3.10255165,2773.0,2772.1,0.433]
[1643742071333,1.5219167,2772.3,2772.1,0.433]
[1643742071534,0.1802,2772.9,2772.1,0.433]
[1643742071535,0.1802,2772.9,2772.1,0.82812312]
[1643742071736,1.52188617,2772.8,2772.1,0.82812312]
[1643742072543,1.52188617,2772.8,2772.0,0.05074148]
[1643742072742,1.52188617,2772.8,2772.1,0.433]
[1643742072943,1.52188617,2772.7,2772.1,0.433]
[1643742073140,1.52188617,2772.6,2772.1,0.433]
[1643742073340,0.8459541,2773.1,2772.5,0.89912202]
[1643742073542,1.52190097,2773.0,2772.5,0.89912202]
[1643742073740,1.52190097,2773.0,2772.6,0.36629471]
[1643742073741,0.1802,2772.9,2772.6,0.36629471]
[1643742073947,3.53245055,2773.8,2772.7,25.49]
[1643742073948,0.6657541,2773.7,2772.7,25.49]
[1643742074146,2.43679755,2773.8,2772.8,0.01211512]
[1643742074346,2.43679755,2773.8,2772.9,21.473]
[1643742074642,2.43679755,2773.8,2772.9,21.79172996]
[1643742074842,2.43679755,2773.8,2773.4,1.22633289]
[1643742075098,1.1269322,2774.0,2773.4,0.84098525]
[1643742075396,1.1269322,2774.0,2773.5,0.433]
[1643742075794,1.1269322,2774.0,2773.6,0.18053]
[1643742076006,1.1269322,2774.0,2773.7,0.82503987]
[1643742076201,1.1269322,2774.0,2773.8,2.07487309]
[1643742076398,1.1269322,2774.0,2773.9,6.26353]
[1643742076599,1.1269322,2774.0,2773.9,8.67835389]
[1643742076795,1.1269322,2774.0,2773.9,9.67835389]
[1643742077001,2.43679755,2775.2,2774.0,5.7]
[1643742077198,2.43679755,2775.2,2774.4,0.90773104]
[1643742077397,2.43679755,2775.2,2774.5,0.433]
[1643742077602,0.99999999,2775.2,2774.6,0.433]
[1643742077800,0.19291133,2775.5,2774.7,0.433]
[1643742078003,3.10255165,2776.2,2774.8,0.433]
[1643742078004,0.1801,2775.8,2774.8,0.433]
[1643742078399,0.22216334,2775.8,2775.0,0.94177441]
[1643742078600,0.99999999,2775.9,2775.1,0.433]
[1643742078842,0.17216334,2776.0,2775.1,0.433]
[1643742079242,0.99999999,2775.7,2775.1,0.433]
[1643742079641,0.17216334,2776.0,2775.1,0.433]
[1643742080043,2.9,2775.2,2774.5,0.18507605]
[1643742080245,0.99999999,2774.9,2774.5,0.18507605]
[1643742080446,0.99999999,2774.9,2774.5,0.1801]
[1643742080848,2.9,2775.2,2774.5,0.1801]
[1643742080849,5.24999999,2774.6,2774.5,0.1801]
[1643742081447,0.99999999,2774.6,2774.5,0.1801]
[1643742081745,0.3,2774.9,2774.5,0.1801]
[1643742081746,0.99999999,2774.8,2774.5,0.1801]
[1643742081945,0.99999999,2774.6,2774.5,0.1801]
[1643742082596,2.9,2775.2,2774.5,0.1801]
[1643742082787,0.99999999,2774.8,2774.5,0.1801]
[1643742082987,0.99999999,2774.8,2774.1,0.25]
[1643742082988,2.9,2775.2,2774.1,0.25]
[1643742083192,0.99999999,2774.2,2774.0,0.1802]
[1643742083393,0.99999999,2774.2,2773.6,0.433]
[1643742083394,0.99999999,2774.6,2773.7,0.1802]
[1643742083590,0.99999999,2774.6,2773.9,0.1802]
[1643742083787,0.99999999,2774.6,2773.7,0.1802]
[1643742084292,0.99999999,2774.6,2773.9,0.89520339]
[1643742084486,0.99999999,2774.6,2773.7,0.1802]
[1643742084689,0.99999999,2774.4,2773.7,0.1802]
[1643742085089,2.9,2775.2,2774.0,21.36055815]
[1643742085289,3.89999999,2775.2,2774.1,1.0]
[1643742085489,0.99999999,2774.9,2773.7,0.6132]
[1643742085690,3.2,2775.2,2773.7,0.1802]
[1643742085691,3.5,2775.2,2773.7,0.1802]
[1643742085891,0.99999999,2774.5,2773.7,0.1802]
[1643742086546,0.99999999,2774.5,2773.8,0.39335327]
[1643742086745,0.3,2774.9,2773.7,0.1802]
[1643742087146,0.3,2775.1,2773.7,0.1802]
[1643742087345,0.99999999,2774.6,2773.6,0.67079623]
[1643742087549,0.3,2775.1,2773.6,0.67079623]
[1643742087747,0.99999999,2774.2,2773.5,0.1802]
[1643742087950,0.99999999,2773.6,2773.5,0.1802]
[1643742088151,0.99999999,2773.6,2773.1,0.1802]
[1643742088152,4.54999999,2773.6,2773.1,0.1802]
[1643742088350,0.99999999,2773.2,2772.6,0.25]
[1643742088550,3.55,2773.6,2772.5,0.1930741]
[1643742088746,0.99999999,2773.5,2772.5,0.0128741]
[1643742088947,0.99999999,2773.1,2772.6,0.43704137]
[1643742089147,0.99999999,2773.1,2772.5,0.0128741]
[1643742089348,2.15315706,2774.5,2772.5,0.0128741]
[1643742089349,0.99999999,2773.8,2772.5,0.0128741]
[1643742089752,3.34529137,2774.6,2772.5,21.0528741]
[1643742089990,3.34529137,2774.6,2772.5,0.0128741]
[1643742089991,0.99999999,2773.6,2772.5,0.0128741]
[1643742090198,4.25350726,2774.6,2773.3,0.6931985]
[1643742090199,0.99999999,2774.4,2773.3,0.6931985]
[1643742090490,3.64529137,2774.6,2772.7,0.25]
[1643742090491,0.01232975,2774.6,2772.7,0.25]
[1643742090688,0.99999999,2773.9,2772.8,0.1802]
[1643742090888,0.01232975,2774.6,2772.8,0.1802]
[1643742091094,0.01232975,2774.6,2772.7,0.1802]
[1643742091095,0.99999999,2773.8,2772.7,0.1802]
[1643742091790,0.99999999,2773.8,2772.8,0.68514887]
[1643742091990,0.99999999,2773.8,2772.8,0.86534887]
[1643742092394,0.01232975,2774.6,2773.7,0.43497423]
[1643742092594,0.01232975,2774.6,2772.6,23.10261301]
[1643742092595,0.99999999,2774.9,2773.1,0.01214731]
[1643742092795,0.00286162,2775.1,2773.4,21.04]
[1643742092995,0.00286162,2775.1,2773.5,4.3283]
[1643742093194,0.99999999,2774.8,2773.6,0.1802]
[1643742093394,0.99999999,2774.8,2773.7,0.433]
[1643742093854,0.99999999,2774.8,2774.0,0.95484064]
[1643742094255,0.99999999,2774.8,2773.8,0.1802]
[1643742094456,0.3,2774.8,2773.8,0.1802]
[1643742094656,0.3,2774.8,2773.5,0.1802]
[1643742094858,0.94999999,2774.3,2773.5,0.1802]
[1643742095056,0.3,2774.8,2773.5,0.1802]
[1643742095255,0.94999999,2774.3,2773.5,0.1802]
[1643742095658,2.57251942,2775.0,2773.5,0.1802]
[1643742095857,0.94999999,2773.9,2773.5,0.1802]
[1643742096258,2.68483274,2775.0,2773.5,0.1802]
[1643742096458,0.94999999,2774.9,2773.7,0.01219415]
[1643742097056,0.94999999,2774.7,2773.7,0.01219415]
[1643742097256,0.94999999,2774.7,2773.8,0.1802]
[1643742097491,0.94999999,2774.7,2774.0,0.77025419]
[1643742097694,0.94999999,2774.7,2773.8,0.1802]
[1643742099003,0.01239006,2775.4,2773.8,0.1802]
[1643742099502,0.94999999,2774.7,2773.8,0.1802]
[1643742099900,0.01239006,2775.4,2773.8,0.1802]
[1643742100102,0.42730349,2775.0,2773.7,0.1802]
[1643742100303,0.94999999,2774.3,2773.7,0.1802]
[1643742100503,0.42730349,2775.0,2773.4,0.1802]
[1643742100504,0.01269915,2774.7,2773.4,0.1802]
[1643742100704,0.01269915,2774.7,2773.3,0.1802]
[1643742100705,0.94999999,2773.8,2773.3,0.1802]
[1643742101104,0.01770239,2774.7,2773.3,0.1802]
[1643742101363,0.94999999,2774.2,2773.5,0.8011162]
[1643742101557,0.01269915,2774.7,2773.1,0.1802]
[1643742101756,0.94999999,2774.0,2773.1,0.1802]
[1643742102055,0.94999999,2773.8,2773.1,0.1802]
[1643742102260,0.94999999,2773.8,2773.1,0.54709685]
[1643742102457,0.94999999,2774.1,2773.3,0.87808351]
[1643742102757,0.94999999,2774.1,2773.1,0.54709685]
[1643742102956,0.94999999,2774.1,2773.1,0.1802]
[1643742103361,0.94999999,2774.1,2773.1,1.1802]
[1643742103660,0.94999999,2774.1,2773.1,1.84634873]
[1643742104060,0.94999999,2774.1,2773.1,0.84634873]
[1643742104990,10.011,2774.9,2773.2,21.04]
[1643742104991,0.89999999,2774.6,2773.2,21.04]
[1643742105191,1.52085394,2774.5,2773.2,21.04]
[1643742105393,1.70105394,2774.5,2773.2,21.04]
[1643742105596,0.6,2775.0,2773.3,22.04]
[1643742105597,2.42085393,2774.4,2773.3,22.04]
[1643742105796,0.89999999,2774.4,2773.3,21.04]
[1643742105995,0.89999999,2774.2,2773.3,21.40541314]
[1643742106594,0.89999999,2774.4,2773.3,21.40541314]
[1643742106794,0.1802,2774.9,2773.3,21.40541314]
[1643742106993,1.52087849,2774.8,2773.3,21.40541314]
[1643742107198,0.1802,2774.7,2773.1,0.84634873]
[1643742107397,0.89999999,2773.8,2773.1,0.84634873]
[1643742107995,0.1802,2774.5,2773.1,0.84634873]
[1643742107996,0.89999999,2774.4,2773.1,0.84634873]
[1643742108195,1.52087473,2774.3,2773.2,0.01216752]
[1643742108397,0.89999999,2773.9,2773.3,0.1802]
[1643742108852,0.89999999,2774.1,2772.9,1.1802]
[1643742109245,0.1802,2774.4,2772.9,0.1802]
[1643742109446,0.89999999,2773.7,2772.9,0.1802]
[1643742109648,1.52088245,2774.3,2772.7,0.1802]
[1643742109649,0.89999999,2773.3,2772.7,0.1802]
[1643742109850,0.89999999,2773.1,2772.5,0.1802]
[1643742110044,2.6174479,2774.2,2772.5,0.1802]
[1643742110045,0.89999999,2773.5,2772.5,0.1802]
[1643742111244,0.97326905,2774.3,2772.5,0.1802]
[1643742111446,0.89999999,2773.7,2772.5,0.1802]
[1643742111649,0.89999999,2773.7,2772.5,21.2802]
[1643742112247,1.52108901,2773.6,2772.5,0.1802]
[1643742112497,0.89999999,2773.2,2772.5,0.1802]
[1643742112702,0.89999999,2773.2,2772.3,0.1802]
[1643742114307,0.89999999,2773.4,2772.3,0.1802]
[1643742114503,0.89999999,2773.1,2772.3,0.1802]
[1643742114903,2.45395097,2773.7,2772.2,0.1802]
[1643742114904,0.6657541,2773.7,2772.2,0.1802]
[1643742115103,0.89999999,2772.8,2772.2,0.1802]
[1643742115304,1.52120009,2773.6,2772.1,0.1802]
[1643742115305,0.89999999,2772.5,2772.1,0.1802]
[1643742115505,0.89999999,2772.2,2771.6,0.1802]
[1643742115706,0.01254956,2773.1,2771.2,0.1802]
[1643742115707,0.89999999,2772.5,2771.2,0.1802]
[1643742116005,1.52149249,2772.4,2771.2,0.1802]
[1643742116450,0.89999999,2771.9,2771.2,0.1802]
[1643742117461,0.32175119,2772.6,2771.2,0.1802]
[1643742117652,0.89999999,2771.8,2771.2,0.1802]
[1643742118354,2.80010784,2772.7,2771.2,0.1802]
[1643742118553,2.80010784,2772.7,2771.2,21.2802]
[1643742118554,0.89999999,2772.4,2771.2,21.2802]
[1643742118753,1.88771361,2773.0,2771.2,21.2802]
[1643742118754,1.52163348,2772.3,2771.6,21.1]
[1643742119152,1.52163348,2772.3,2771.7,1.0]
[1643742119356,1.52163348,2772.3,2771.8,0.1802]
[1643742119753,1.52163348,2772.3,2771.8,22.2802]
[1643742120001,1.52163348,2772.3,2771.8,0.1802]
[1643742120205,1.7877136,2773.1,2771.8,0.1802]
[1643742120206,0.89999999,2773.1,2771.8,0.1802]
[1643742120406,1.52131775,2773.0,2771.9,21.533]
[1643742120706,1.52131775,2772.9,2772.1,21.1]
[1643742120904,0.67857739,2773.7,2772.3,21.1]
[1643742121104,1.52107024,2773.6,2772.6,1.14149602]
[1643742121304,1.52107024,2773.6,2772.6,21.50887169]
[1643742121503,0.89999999,2774.0,2772.6,0.40887169]
[1643742121504,1.52107024,2773.5,2772.6,0.40887169]
[1643742121704,1.52107024,2773.7,2772.7,1.0]
[1643742121906,1.52107024,2773.6,2772.6,1.40887169]
[1643742122104,1.52107024,2773.5,2772.6,22.68907169]
[1643742122306,1.52107024,2773.4,2772.7,0.95148718]
[1643742122502,0.6657541,2773.8,2772.7,0.95148718]
[1643742122503,1.52107024,2773.3,2772.7,0.95148718]
[1643742122704,1.52107024,2773.2,2773.1,21.46204886]
[1643742122907,3.79932267,2774.3,2773.1,0.36204886]
[1643742123106,1.52080382,2774.2,2773.1,1.48024886]
[1643742123307,0.6657541,2774.3,2773.1,1.1182]
[1643742123308,1.52080382,2774.1,2773.1,1.1182]
[1643742123510,1.03019999,2774.4,2773.2,0.1802]
[1643742123511,1.52080382,2774.0,2773.2,0.1802]
[1643742123760,1.52080382,2773.9,2773.2,0.1802]
[1643742123960,0.6657541,2774.2,2773.2,0.1802]
[1643742123961,1.52080382,2773.8,2773.2,0.1802]
[1643742124157,0.5,2773.6,2773.2,0.1802]
[1643742124360,0.5,2773.6,2773.2,0.6132]
[1643742125159,1.52085397,2773.5,2773.2,0.6132]
[1643742125360,1.52085397,2773.5,2773.0,0.13819996]
[1643742125762,0.89999999,2773.3,2772.6,0.1802]
[1643742125970,0.5,2773.6,2772.6,0.1802]
[1643742126162,0.5,2773.6,2772.9,0.89991127]
[1643742126362,0.5,2773.6,2773.0,21.2802]
[1643742127164,0.5,2773.6,2773.1,1.0]
[1643742127595,0.5,2773.6,2773.0,21.2802]
[1643742129403,0.5,2773.6,2773.2,21.1]
[1643742129603,0.5,2773.6,2773.3,0.5214998]
[1643742130202,0.5,2773.6,2773.5,6.62103167]
[1643742130704,0.5,2773.6,2773.5,5.8]
[1643742131004,0.5,2773.6,2773.3,0.1802]
[1643742131440,0.5,2773.6,2772.9,21.93322436]
[1643742131646,0.5,2773.6,2773.0,0.41541949]